[Event "Titled Tuesday Blitz October 25 Early 2022"]
[White "Colas, Joshua"]
[Black "Paravyan, David"]
[WhiteFideId "2044447"]
[BlackFideId "4194985"]
[WhiteElo "2347"]
[BlackElo "2555"]
[Result "0-1"]
[Round "02"]
[TimeControl "180+1"]
[Date "2022.10.25"]
[WhiteClock "0:00:03"]
[BlackClock "0:01:34"]

1. Nf3 {[%clk 0:01:52]}  Nf6 {[%clk 0:02:55]} 2. c4 {[%clk 0:01:52]}  g6 {[%clk 0:02:55]} 3. b3 {[%clk 0:01:52]}  Bg7 {[%clk 0:02:54]} 4. Bb2 {[%clk 0:01:53]}  d6 {[%clk 0:02:54]} 5. d4 {[%clk 0:01:52]}  O-O {[%clk 0:02:52]} 6. g3 {[%clk 0:01:53]}  e5 {[%clk 0:02:52]} 7. dxe5 {[%clk 0:01:53]}  dxe5 {[%clk 0:02:51]} 8. Qxd8 {[%clk 0:01:50]}  Rxd8 {[%clk 0:02:52]} 9. Nxe5 {[%clk 0:01:50]}  Na6 {[%clk 0:02:36]} 10. Nd3 {[%clk 0:01:45]}  Bf5 {[%clk 0:02:36]} 11. Na3 {[%clk 0:01:28]}  Bxd3 {[%clk 0:02:24]} 12. exd3 {[%clk 0:01:29]}  Re8+ {[%clk 0:02:24]} 13. Kd2 {[%clk 0:01:23]}  Ne4+ {[%clk 0:02:24]} 14. Kc1 {[%clk 0:01:14]}  Nxf2 {[%clk 0:02:24]} 15. Bxg7 {[%clk 0:00:49]}  Kxg7 {[%clk 0:02:22]} 16. Rg1 {[%clk 0:00:47]}  Rad8 {[%clk 0:02:23]} 17. Nc2 {[%clk 0:00:40]}  Nxd3+ {[%clk 0:02:21]} 18. Bxd3 {[%clk 0:00:40]}  Rxd3 {[%clk 0:02:22]} 19. Re1 {[%clk 0:00:40]}  Red8 {[%clk 0:02:18]} 20. Re7 {[%clk 0:00:38]}  Kf6 {[%clk 0:02:14]} 21. Re2 {[%clk 0:00:37]}  Nc5 {[%clk 0:02:04]} 22. Kb2 {[%clk 0:00:37]}  Rd2 {[%clk 0:02:00]} 23. Rf1+ {[%clk 0:00:38]}  Kg7 {[%clk 0:02:00]} 24. Re7 {[%clk 0:00:38]}  Rf8 {[%clk 0:01:50]} 25. Rxc7 {[%clk 0:00:36]}  b6 {[%clk 0:01:35]} 26. Rxa7 {[%clk 0:00:28]}  Rxh2 {[%clk 0:01:35]} 27. Kb1 {[%clk 0:00:15]}  Ne4 {[%clk 0:01:34]} 28. Rd7 {[%clk 0:00:11]}  Nd2+ {[%clk 0:01:34]} 29. Rxd2 {[%clk 0:00:09]}  Rxd2 {[%clk 0:01:35]} 30. Ne3 {[%clk 0:00:10]}  Re8 {[%clk 0:01:33]} 31. Nd5 {[%clk 0:00:09]}  Ree2 {[%clk 0:01:33]} 32. Nxb6 {[%clk 0:00:06]}  Rb2+ {[%clk 0:01:33]} 33. Kc1 {[%clk 0:00:06]}  Rxa2 {[%clk 0:01:34]} 34. c5 {[%clk 0:00:03]}  Ra1# {[%clk 0:01:34]} 0-1


[Site "https://www.chess.com"]

[Event "Titled Tuesday Blitz October 25 Early 2022"]
[White "Firouzja, Alireza"]
[Black "Mirzoev, Azer"]
[WhiteFideId "12573981"]
[BlackFideId "13400304"]
[WhiteElo "2903"]
[BlackElo "2525"]
[Result "1-0"]
[Round "02"]
[TimeControl "180+1"]
[Date "2022.10.25"]
[WhiteClock "0:00:14"]
[BlackClock "0:00:06"]

1. d4 {[%clk 0:03:00]}  Nf6 {[%clk 0:02:59]} 2. Bg5 {[%clk 0:03:01]}  d5 {[%clk 0:02:58]} 3. e3 {[%clk 0:03:01]}  e6 {[%clk 0:02:58]} 4. Nd2 {[%clk 0:03:00]}  h6 {[%clk 0:02:58]} 5. Bh4 {[%clk 0:03:00]}  Be7 {[%clk 0:02:58]} 6. Bd3 {[%clk 0:03:00]}  Nbd7 {[%clk 0:02:55]} 7. Ngf3 {[%clk 0:03:00]}  c5 {[%clk 0:02:55]} 8. c3 {[%clk 0:03:00]}  b6 {[%clk 0:02:53]} 9. O-O {[%clk 0:03:00]}  Bb7 {[%clk 0:02:53]} 10. Qb1 {[%clk 0:03:00]}  Qc7 {[%clk 0:02:49]} 11. b4 {[%clk 0:02:58]}  O-O {[%clk 0:02:46]} 12. Bg3 {[%clk 0:02:49]}  Qc8 {[%clk 0:02:41]} 13. a4 {[%clk 0:02:45]}  a5 {[%clk 0:02:26]} 14. b5 {[%clk 0:02:39]}  Qd8 {[%clk 0:02:22]} 15. Rd1 {[%clk 0:02:36]}  Rc8 {[%clk 0:02:18]} 16. h3 {[%clk 0:02:26]}  cxd4 {[%clk 0:02:18]} 17. cxd4 {[%clk 0:02:24]}  Bb4 {[%clk 0:02:18]} 18. Ra2 {[%clk 0:02:21]}  Qe7 {[%clk 0:02:17]} 19. Bh4 {[%clk 0:02:19]}  Rc3 {[%clk 0:02:08]} 20. Ne5 {[%clk 0:02:17]}  Rfc8 {[%clk 0:02:07]} 21. Ndf3 {[%clk 0:02:11]}  Qf8 {[%clk 0:02:04]} 22. Nxd7 {[%clk 0:02:02]}  Nxd7 {[%clk 0:02:03]} 23. Rc2 {[%clk 0:02:03]}  Rxc2 {[%clk 0:01:59]} 24. Bxc2 {[%clk 0:02:04]}  Be7 {[%clk 0:01:56]} 25. Bg3 {[%clk 0:01:37]}  Bd6 {[%clk 0:01:56]} 26. Bf4 {[%clk 0:01:38]}  Bxf4 {[%clk 0:01:55]} 27. exf4 {[%clk 0:01:39]}  Nf6 {[%clk 0:01:50]} 28. Ne5 {[%clk 0:01:34]}  Qd6 {[%clk 0:01:29]} 29. Bd3 {[%clk 0:01:24]}  Rc7 {[%clk 0:01:20]} 30. Qb2 {[%clk 0:01:11]}  Kf8 {[%clk 0:01:05]} 31. Re1 {[%clk 0:01:07]}  Qb4 {[%clk 0:00:57]} 32. Qxb4+ {[%clk 0:01:02]}  axb4 {[%clk 0:00:57]} 33. Rb1 {[%clk 0:01:03]}  Rc3 {[%clk 0:00:56]} 34. Rxb4 {[%clk 0:00:49]}  Rc1+ {[%clk 0:00:56]} 35. Kh2 {[%clk 0:00:49]}  Ra1 {[%clk 0:00:56]} 36. f3 {[%clk 0:00:43]}  Nh5 {[%clk 0:00:49]} 37. f5 {[%clk 0:00:39]}  exf5 {[%clk 0:00:42]} 38. Bxf5 {[%clk 0:00:37]}  Ke7 {[%clk 0:00:39]} 39. Bc2 {[%clk 0:00:28]}  Nf4 {[%clk 0:00:31]} 40. Nd3 {[%clk 0:00:21]}  Ne6 {[%clk 0:00:24]} 41. Kg3 {[%clk 0:00:19]}  Kd6 {[%clk 0:00:19]} 42. Kf2 {[%clk 0:00:18]}  Ra2 {[%clk 0:00:19]} 43. Ne1 {[%clk 0:00:18]}  g5 {[%clk 0:00:17]} 44. g3 {[%clk 0:00:18]}  Bc8 {[%clk 0:00:16]} 45. Ke3 {[%clk 0:00:18]}  Bd7 {[%clk 0:00:15]} 46. Bf5 {[%clk 0:00:17]}  Ra3+ {[%clk 0:00:14]} 47. Kf2 {[%clk 0:00:15]}  Nf8 {[%clk 0:00:10]} 48. Bxd7 {[%clk 0:00:14]}  Kxd7 {[%clk 0:00:10]} 49. Ke2 {[%clk 0:00:13]}  Ne6 {[%clk 0:00:10]} 50. Nc2 {[%clk 0:00:14]}  Ra2 {[%clk 0:00:09]} 51. Kd2 {[%clk 0:00:14]}  Kd6 {[%clk 0:00:09]} 52. Kc3 {[%clk 0:00:14]}  f5 {[%clk 0:00:06]} 53. Kb3 {[%clk 0:00:14]} 1-0


[Site "https://www.chess.com"]

[Event "Titled Tuesday Blitz October 25 Early 2022"]
[White "Gilmanov, Mansur"]
[Black "Jones, Gawain C B"]
[WhiteFideId "4166868"]
[BlackFideId "409561"]
[WhiteElo "2377"]
[BlackElo "2657"]
[Result "0-1"]
[Round "02"]
[TimeControl "180+1"]
[Date "2022.10.25"]
[WhiteClock "0:00:08"]
[BlackClock "0:00:05"]

1. d4 {[%clk 0:03:00]}  Nf6 {[%clk 0:02:58]} 2. Bg5 {[%clk 0:03:00]}  g6 {[%clk 0:02:58]} 3. Nc3 {[%clk 0:02:58]}  d5 {[%clk 0:02:57]} 4. e3 {[%clk 0:02:57]}  Bg7 {[%clk 0:02:53]} 5. f4 {[%clk 0:02:56]}  Ne4 {[%clk 0:02:49]} 6. Nf3 {[%clk 0:02:54]}  Nxc3 {[%clk 0:02:48]} 7. bxc3 {[%clk 0:02:54]}  O-O {[%clk 0:02:47]} 8. Be2 {[%clk 0:02:47]}  c5 {[%clk 0:02:46]} 9. O-O {[%clk 0:02:47]}  Bg4 {[%clk 0:02:44]} 10. Rb1 {[%clk 0:02:36]}  Qc7 {[%clk 0:02:33]} 11. dxc5 {[%clk 0:01:52]}  Qxc5 {[%clk 0:02:03]} 12. Rxb7 {[%clk 0:01:41]}  Qxe3+ {[%clk 0:01:48]} 13. Kh1 {[%clk 0:01:40]}  Nc6 {[%clk 0:01:48]} 14. f5 {[%clk 0:01:30]}  Qxc3 {[%clk 0:01:48]} 15. fxg6 {[%clk 0:01:27]}  hxg6 {[%clk 0:01:46]} 16. Bxe7 {[%clk 0:00:40]}  Nxe7 {[%clk 0:01:43]} 17. Rxe7 {[%clk 0:00:41]}  Rae8 {[%clk 0:01:38]} 18. Rxe8 {[%clk 0:00:17]}  Rxe8 {[%clk 0:01:39]} 19. Bd3 {[%clk 0:00:17]}  Bh6 {[%clk 0:01:17]} 20. h3 {[%clk 0:00:17]}  Be6 {[%clk 0:01:16]} 21. Qe1 {[%clk 0:00:15]}  Qxe1 {[%clk 0:01:15]} 22. Rxe1 {[%clk 0:00:16]}  Kg7 {[%clk 0:01:04]} 23. Nd4 {[%clk 0:00:12]}  Bd7 {[%clk 0:01:04]} 24. Rxe8 {[%clk 0:00:13]}  Bxe8 {[%clk 0:01:05]} 25. g3 {[%clk 0:00:10]}  Bd7 {[%clk 0:01:02]} 26. Kg2 {[%clk 0:00:10]}  Be3 {[%clk 0:00:56]} 27. Nb3 {[%clk 0:00:09]}  Kf6 {[%clk 0:00:55]} 28. Kf3 {[%clk 0:00:08]}  Bb6 {[%clk 0:00:55]} 29. h4 {[%clk 0:00:07]}  a5 {[%clk 0:00:48]} 30. Nd2 {[%clk 0:00:05]}  a4 {[%clk 0:00:46]} 31. Nf1 {[%clk 0:00:05]}  Ke5 {[%clk 0:00:44]} 32. Ne3 {[%clk 0:00:05]}  Bd8 {[%clk 0:00:34]} 33. Nd1 {[%clk 0:00:03]}  Kd4 {[%clk 0:00:33]} 34. Be2 {[%clk 0:00:02]}  Bf5 {[%clk 0:00:30]} 35. c3+ {[%clk 0:00:03]}  Ke5 {[%clk 0:00:26]} 36. Nb2 {[%clk 0:00:01]}  Be4+ {[%clk 0:00:15]} 37. Ke3 {[%clk 0:00:01]}  Bb6+ {[%clk 0:00:13]} 38. Kd2 {[%clk 0:00:02]}  a3 {[%clk 0:00:14]} 39. Nd3+ {[%clk 0:00:02]}  Kd6 {[%clk 0:00:11]} 40. g4 {[%clk 0:00:02]}  Bd8 {[%clk 0:00:10]} 41. h5 {[%clk 0:00:02]}  Bg5+ {[%clk 0:00:10]} 42. Kc2 {[%clk 0:00:03]}  gxh5 {[%clk 0:00:07]} 43. gxh5 {[%clk 0:00:03]}  f5 {[%clk 0:00:08]} 44. Kb3 {[%clk 0:00:03]}  f4 {[%clk 0:00:08]} 45. Ne1 {[%clk 0:00:03]}  d4 {[%clk 0:00:04]} 46. cxd4 {[%clk 0:00:03]}  Kd5 {[%clk 0:00:04]} 47. Nf3 {[%clk 0:00:03]}  Be7 {[%clk 0:00:03]} 48. h6 {[%clk 0:00:03]}  Bf8 {[%clk 0:00:04]} 49. h7 {[%clk 0:00:04]}  Bxh7 {[%clk 0:00:03]} 50. Kc3 {[%clk 0:00:04]}  Be4 {[%clk 0:00:03]} 51. Nd2 {[%clk 0:00:04]}  Bg2 {[%clk 0:00:02]} 52. Bf3+ {[%clk 0:00:04]}  Bxf3 {[%clk 0:00:03]} 53. Nxf3 {[%clk 0:00:05]}  Ke4 {[%clk 0:00:04]} 54. Nd2+ {[%clk 0:00:04]}  Ke3 {[%clk 0:00:04]} 55. Nc4+ {[%clk 0:00:05]}  Ke2 {[%clk 0:00:04]} 56. Ne5 {[%clk 0:00:05]}  Bd6 {[%clk 0:00:04]} 57. Nd3 {[%clk 0:00:06]}  f3 {[%clk 0:00:04]} 58. Nc1+ {[%clk 0:00:05]}  Ke3 {[%clk 0:00:05]} 59. Nd3 {[%clk 0:00:04]}  f2 {[%clk 0:00:04]} 60. Nxf2 {[%clk 0:00:04]}  Kxf2 {[%clk 0:00:05]} 61. Kc4 {[%clk 0:00:05]}  Ke3 {[%clk 0:00:05]} 62. Kd5 {[%clk 0:00:05]}  Bf8 {[%clk 0:00:06]} 63. Ke5 {[%clk 0:00:06]}  Kd3 {[%clk 0:00:06]} 64. d5 {[%clk 0:00:06]}  Kc3 {[%clk 0:00:06]} 65. Ke4 {[%clk 0:00:06]}  Bd6 {[%clk 0:00:05]} 66. Ke3 {[%clk 0:00:06]}  Kb2 {[%clk 0:00:05]} 67. Kd3 {[%clk 0:00:06]}  Kxa2 {[%clk 0:00:05]} 68. Kc2 {[%clk 0:00:07]}  Be5 {[%clk 0:00:05]} 69. Kc1 {[%clk 0:00:07]}  Kb3 {[%clk 0:00:05]} 70. Kb1 {[%clk 0:00:07]}  a2+ {[%clk 0:00:05]} 71. Kc1 {[%clk 0:00:08]}  Kc3 {[%clk 0:00:05]} 0-1


[Site "https://www.chess.com"]

[Event "Titled Tuesday Blitz October 25 Early 2022"]
[White "Keymer, Vincent"]
[Black "Kim, Sergey"]
[WhiteFideId "12940690"]
[BlackFideId "13700570"]
[WhiteElo "2600"]
[BlackElo "2622"]
[Result "1-0"]
[Round "02"]
[TimeControl "180+1"]
[Date "2022.10.25"]
[WhiteClock "0:00:06"]
[BlackClock "0:01:40"]

1. g3 {[%clk 0:03:00]}  Nf6 {[%clk 0:02:59]} 2. Bg2 {[%clk 0:03:00]}  g6 {[%clk 0:03:00]} 3. d4 {[%clk 0:02:58]}  Bg7 {[%clk 0:03:00]} 4. c4 {[%clk 0:02:59]}  O-O {[%clk 0:03:00]} 5. Nc3 {[%clk 0:02:59]}  d6 {[%clk 0:03:01]} 6. Nf3 {[%clk 0:02:58]}  Nbd7 {[%clk 0:03:01]} 7. O-O {[%clk 0:02:58]}  e5 {[%clk 0:03:02]} 8. e4 {[%clk 0:02:59]}  exd4 {[%clk 0:03:02]} 9. Nxd4 {[%clk 0:03:00]}  Re8 {[%clk 0:03:02]} 10. h3 {[%clk 0:02:59]}  Nc5 {[%clk 0:03:02]} 11. Re1 {[%clk 0:02:58]}  c6 {[%clk 0:03:02]} 12. Bf4 {[%clk 0:02:53]}  Nh5 {[%clk 0:03:01]} 13. Be3 {[%clk 0:02:53]}  a5 {[%clk 0:03:01]} 14. b3 {[%clk 0:02:48]}  Qb6 {[%clk 0:02:55]} 15. Rb1 {[%clk 0:02:40]}  Qc7 {[%clk 0:02:49]} 16. Qd2 {[%clk 0:02:18]}  Nf6 {[%clk 0:02:47]} 17. Qc2 {[%clk 0:02:15]}  Nfd7 {[%clk 0:02:45]} 18. Kh2 {[%clk 0:02:12]}  Ne5 {[%clk 0:02:45]} 19. Rbd1 {[%clk 0:02:11]}  Qe7 {[%clk 0:02:36]} 20. f4 {[%clk 0:02:07]}  Ned7 {[%clk 0:02:34]} 21. Bg1 {[%clk 0:01:50]}  Nf6 {[%clk 0:02:30]} 22. Nf3 {[%clk 0:01:34]}  b6 {[%clk 0:02:24]} 23. e5 {[%clk 0:01:04]}  dxe5 {[%clk 0:02:19]} 24. Nxe5 {[%clk 0:00:33]}  Bb7 {[%clk 0:02:11]} 25. Nxg6 {[%clk 0:00:25]}  Qxe1 {[%clk 0:02:10]} 26. Rxe1 {[%clk 0:00:26]}  Rxe1 {[%clk 0:02:09]} 27. Bxc5 {[%clk 0:00:26]}  bxc5 {[%clk 0:02:08]} 28. Ne5 {[%clk 0:00:19]}  Rd8 {[%clk 0:02:01]} 29. Na4 {[%clk 0:00:15]}  Red1 {[%clk 0:01:57]} 30. Nxc5 {[%clk 0:00:08]}  Bc8 {[%clk 0:01:53]} 31. Ncd3 {[%clk 0:00:07]}  Bf5 {[%clk 0:01:53]} 32. Qxd1 {[%clk 0:00:07]}  Ne4 {[%clk 0:01:51]} 33. Qe1 {[%clk 0:00:07]}  Nf6 {[%clk 0:01:44]} 34. Nxc6 {[%clk 0:00:07]}  Re8 {[%clk 0:01:43]} 35. Nde5 {[%clk 0:00:06]}  Nd7 {[%clk 0:01:42]} 36. Qxa5 {[%clk 0:00:06]}  f6 {[%clk 0:01:41]} 37. Nxd7 {[%clk 0:00:05]}  Bxd7 {[%clk 0:01:40]} 38. Qd5+ {[%clk 0:00:06]} 1-0


[Site "https://www.chess.com"]

[Event "Titled Tuesday Blitz October 25 Early 2022"]
[White "Kosakowski, Jakub"]
[Black "Volkov, Maksim"]
[WhiteFideId "1185080"]
[BlackFideId "54123070"]
[WhiteElo "2463"]
[BlackElo "2257"]
[Result "1/2-1/2"]
[Round "02"]
[TimeControl "180+1"]
[Date "2022.10.25"]
[WhiteClock "0:00:07"]
[BlackClock "0:00:05"]

1. d4 {[%clk 0:02:56]}  d5 {[%clk 0:02:59]} 2. c4 {[%clk 0:02:54]}  e6 {[%clk 0:02:59]} 3. Nc3 {[%clk 0:02:53]}  c6 {[%clk 0:02:59]} 4. e4 {[%clk 0:02:52]}  dxe4 {[%clk 0:02:59]} 5. Nxe4 {[%clk 0:02:53]}  Bb4+ {[%clk 0:02:59]} 6. Bd2 {[%clk 0:02:53]}  Qxd4 {[%clk 0:02:59]} 7. Bxb4 {[%clk 0:02:53]}  Qxe4+ {[%clk 0:03:00]} 8. Ne2 {[%clk 0:02:53]}  Na6 {[%clk 0:02:56]} 9. Bf8 {[%clk 0:02:53]}  Ne7 {[%clk 0:02:56]} 10. Bxg7 {[%clk 0:02:53]}  Rg8 {[%clk 0:02:56]} 11. Bc3 {[%clk 0:02:47]}  e5 {[%clk 0:02:50]} 12. Qd2 {[%clk 0:02:38]}  Bf5 {[%clk 0:02:44]} 13. f3 {[%clk 0:02:36]}  Qh4+ {[%clk 0:02:29]} 14. Ng3 {[%clk 0:02:35]}  Rd8 {[%clk 0:02:04]} 15. Qf2 {[%clk 0:02:35]}  Be6 {[%clk 0:02:01]} 16. Ne4 {[%clk 0:02:27]}  Qf4 {[%clk 0:01:54]} 17. Be2 {[%clk 0:02:11]}  Rg6 {[%clk 0:01:36]} 18. Rd1 {[%clk 0:01:42]}  Rxd1+ {[%clk 0:01:33]} 19. Kxd1 {[%clk 0:01:43]}  Nf5 {[%clk 0:01:15]} 20. Bd2 {[%clk 0:01:30]}  Qh4 {[%clk 0:01:15]} 21. Qxa7 {[%clk 0:01:04]}  Bc8 {[%clk 0:00:51]} 22. Rg1 {[%clk 0:00:20]}  Nd4 {[%clk 0:00:46]} 23. Be3 {[%clk 0:00:15]}  Nxe2 {[%clk 0:00:24]} 24. Kxe2 {[%clk 0:00:16]}  f5 {[%clk 0:00:24]} 25. Qa8 {[%clk 0:00:12]}  Kd7 {[%clk 0:00:18]} 26. Rd1+ {[%clk 0:00:12]}  Kc7 {[%clk 0:00:18]} 27. Qa7 {[%clk 0:00:10]}  c5 {[%clk 0:00:12]} 28. Nxc5 {[%clk 0:00:07]}  Qxc4+ {[%clk 0:00:08]} 29. Nd3 {[%clk 0:00:05]}  Qb5 {[%clk 0:00:04]} 30. Rc1+ {[%clk 0:00:05]}  Rc6 {[%clk 0:00:05]} 31. Rxc6+ {[%clk 0:00:04]}  Kxc6 {[%clk 0:00:06]} 32. Qa8 {[%clk 0:00:03]}  Kc7 {[%clk 0:00:06]} 33. Qa7 {[%clk 0:00:03]}  e4 {[%clk 0:00:06]} 34. fxe4 {[%clk 0:00:02]}  fxe4 {[%clk 0:00:07]} 35. Bf4+ {[%clk 0:00:03]}  Kc6 {[%clk 0:00:07]} 36. Qd4 {[%clk 0:00:03]}  Qxd3+ {[%clk 0:00:07]} 37. Qxd3 {[%clk 0:00:04]}  exd3+ {[%clk 0:00:08]} 38. Kxd3 {[%clk 0:00:04]}  Bf5+ {[%clk 0:00:09]} 39. Kd4 {[%clk 0:00:04]}  Nb4 {[%clk 0:00:09]} 40. a3 {[%clk 0:00:04]}  Nd3 {[%clk 0:00:09]} 41. Bg5 {[%clk 0:00:02]}  Nxb2 {[%clk 0:00:08]} 42. Ke5 {[%clk 0:00:03]}  Bg6 {[%clk 0:00:09]} 43. Kf6 {[%clk 0:00:03]}  Nc4 {[%clk 0:00:09]} 44. Bc1 {[%clk 0:00:04]}  Kb5 {[%clk 0:00:07]} 45. g4 {[%clk 0:00:04]}  Ka4 {[%clk 0:00:08]} 46. h4 {[%clk 0:00:05]}  Nxa3 {[%clk 0:00:08]} 47. h5 {[%clk 0:00:05]}  Bc2 {[%clk 0:00:08]} 48. g5 {[%clk 0:00:05]}  b5 {[%clk 0:00:08]} 49. g6 {[%clk 0:00:06]}  hxg6 {[%clk 0:00:08]} 50. hxg6 {[%clk 0:00:06]}  b4 {[%clk 0:00:05]} 51. g7 {[%clk 0:00:04]}  Bb3 {[%clk 0:00:04]} 52. Bd2 {[%clk 0:00:04]}  Nb1 {[%clk 0:00:03]} 53. Bxb4 {[%clk 0:00:04]}  Kxb4 {[%clk 0:00:03]} 54. Ke7 {[%clk 0:00:04]}  Nc3 {[%clk 0:00:04]} 55. Kf8 {[%clk 0:00:05]}  Ne4 {[%clk 0:00:04]} 56. g8=Q {[%clk 0:00:06]}  Bxg8 {[%clk 0:00:05]} 57. Kxg8 {[%clk 0:00:07]} 1/2-1/2


[Site "https://www.chess.com"]

[Event "Titled Tuesday Blitz October 25 Early 2022"]
[White "Kuderinov, Kirill"]
[Black "Martinez Alcantara, Jose Eduardo"]
[WhiteFideId "13701568"]
[BlackFideId "3805662"]
[WhiteElo "2465"]
[BlackElo "2703"]
[Result "0-1"]
[Round "02"]
[TimeControl "180+1"]
[Date "2022.10.25"]
[WhiteClock "0:00:05"]
[BlackClock "0:00:50"]

1. e4 {[%clk 0:02:59]}  c5 {[%clk 0:03:00]} 2. Nf3 {[%clk 0:02:59]}  d6 {[%clk 0:03:01]} 3. Bb5+ {[%clk 0:02:59]}  Bd7 {[%clk 0:03:00]} 4. Bxd7+ {[%clk 0:02:59]}  Nxd7 {[%clk 0:03:01]} 5. O-O {[%clk 0:02:59]}  Ngf6 {[%clk 0:03:02]} 6. Re1 {[%clk 0:02:59]}  g6 {[%clk 0:03:02]} 7. c3 {[%clk 0:02:59]}  Bg7 {[%clk 0:03:03]} 8. d4 {[%clk 0:02:59]}  cxd4 {[%clk 0:03:03]} 9. cxd4 {[%clk 0:02:59]}  O-O {[%clk 0:03:04]} 10. Nc3 {[%clk 0:02:59]}  a6 {[%clk 0:03:05]} 11. Bg5 {[%clk 0:02:58]}  Nb6 {[%clk 0:03:04]} 12. Rc1 {[%clk 0:02:55]}  Rc8 {[%clk 0:03:00]} 13. e5 {[%clk 0:02:42]}  Nfd5 {[%clk 0:02:59]} 14. Nxd5 {[%clk 0:02:34]}  Nxd5 {[%clk 0:02:59]} 15. Qb3 {[%clk 0:02:34]}  Rxc1 {[%clk 0:02:47]} 16. Rxc1 {[%clk 0:02:33]}  dxe5 {[%clk 0:02:47]} 17. dxe5 {[%clk 0:02:30]}  Qd7 {[%clk 0:02:47]} 18. h3 {[%clk 0:02:13]}  e6 {[%clk 0:02:46]} 19. a3 {[%clk 0:01:59]}  Rc8 {[%clk 0:02:46]} 20. Rxc8+ {[%clk 0:01:54]}  Qxc8 {[%clk 0:02:47]} 21. Qd3 {[%clk 0:01:41]}  Qc7 {[%clk 0:02:45]} 22. Qe2 {[%clk 0:01:39]}  Qb6 {[%clk 0:02:42]} 23. Qc2 {[%clk 0:01:29]}  h6 {[%clk 0:02:29]} 24. Qc8+ {[%clk 0:01:24]}  Kh7 {[%clk 0:02:30]} 25. Bc1 {[%clk 0:01:24]}  Qb3 {[%clk 0:02:28]} 26. Kh2 {[%clk 0:01:16]}  Qb6 {[%clk 0:02:00]} 27. Qc2 {[%clk 0:01:03]}  Qd8 {[%clk 0:01:56]} 28. Kg1 {[%clk 0:01:00]}  Ne7 {[%clk 0:01:56]} 29. Bd2 {[%clk 0:00:56]}  Nc6 {[%clk 0:01:53]} 30. Bc3 {[%clk 0:00:56]}  Qd5 {[%clk 0:01:54]} 31. Qe2 {[%clk 0:00:56]}  Kg8 {[%clk 0:01:48]} 32. h4 {[%clk 0:00:55]}  h5 {[%clk 0:01:45]} 33. Kf1 {[%clk 0:00:54]}  Bf8 {[%clk 0:01:40]} 34. Ng5 {[%clk 0:00:49]}  Be7 {[%clk 0:01:37]} 35. Nf3 {[%clk 0:00:42]}  b5 {[%clk 0:01:36]} 36. Qd2 {[%clk 0:00:31]}  Qc4+ {[%clk 0:01:36]} 37. Kg1 {[%clk 0:00:30]}  a5 {[%clk 0:01:23]} 38. Qd7 {[%clk 0:00:27]}  b4 {[%clk 0:01:22]} 39. axb4 {[%clk 0:00:23]}  axb4 {[%clk 0:01:23]} 40. Bd2 {[%clk 0:00:23]}  Kg7 {[%clk 0:01:07]} 41. Bg5 {[%clk 0:00:18]}  Bxg5 {[%clk 0:01:04]} 42. hxg5 {[%clk 0:00:18]}  Qc5 {[%clk 0:01:01]} 43. Qc7 {[%clk 0:00:18]}  Qd5 {[%clk 0:01:00]} 44. Kh2 {[%clk 0:00:16]}  b3 {[%clk 0:01:00]} 45. Kg1 {[%clk 0:00:15]}  Nd4 {[%clk 0:00:55]} 46. Nxd4 {[%clk 0:00:14]}  Qxd4 {[%clk 0:00:55]} 47. Qc1 {[%clk 0:00:08]}  Qxe5 {[%clk 0:00:55]} 48. Qd2 {[%clk 0:00:08]}  Qc5 {[%clk 0:00:52]} 49. g3 {[%clk 0:00:08]}  e5 {[%clk 0:00:51]} 50. Kh2 {[%clk 0:00:05]}  Qc2 {[%clk 0:00:50]} 51. Qe3 {[%clk 0:00:03]}  Qxb2 {[%clk 0:00:50]} 52. Qf3 {[%clk 0:00:04]}  e4 {[%clk 0:00:50]} 53. Qxe4 {[%clk 0:00:04]}  Qxf2+ {[%clk 0:00:50]} 54. Kh3 {[%clk 0:00:05]}  Qf5+ {[%clk 0:00:50]} 0-1


[Site "https://www.chess.com"]

[Event "Titled Tuesday Blitz October 25 Early 2022"]
[White "Manukyan, Sargis A."]
[Black "Svane, Frederik"]
[WhiteFideId "13303970"]
[BlackFideId "12923044"]
[WhiteElo "2187"]
[BlackElo "2466"]
[Result "0-1"]
[Round "02"]
[TimeControl "180+1"]
[Date "2022.10.25"]
[WhiteClock "0:01:50"]
[BlackClock "0:00:42"]

1. d4 {[%clk 0:02:57]}  Nf6 {[%clk 0:02:59]} 2. e3 {[%clk 0:02:56]}  g6 {[%clk 0:02:59]} 3. Nf3 {[%clk 0:02:57]}  Bg7 {[%clk 0:03:00]} 4. Be2 {[%clk 0:02:58]}  O-O {[%clk 0:03:00]} 5. O-O {[%clk 0:02:59]}  b6 {[%clk 0:03:01]} 6. a4 {[%clk 0:02:58]}  Bb7 {[%clk 0:03:02]} 7. a5 {[%clk 0:02:58]}  c5 {[%clk 0:02:58]} 8. axb6 {[%clk 0:02:58]}  axb6 {[%clk 0:02:57]} 9. Rxa8 {[%clk 0:02:58]}  Bxa8 {[%clk 0:02:58]} 10. b3 {[%clk 0:02:56]}  cxd4 {[%clk 0:02:55]} 11. Nxd4 {[%clk 0:02:56]}  d5 {[%clk 0:02:50]} 12. Bb2 {[%clk 0:02:55]}  Re8 {[%clk 0:02:47]} 13. Nc3 {[%clk 0:02:55]}  e5 {[%clk 0:02:45]} 14. Nf3 {[%clk 0:02:55]}  Nbd7 {[%clk 0:02:41]} 15. Qa1 {[%clk 0:02:53]}  Bc6 {[%clk 0:02:25]} 16. Nb5 {[%clk 0:02:50]}  Qb8 {[%clk 0:02:24]} 17. Rd1 {[%clk 0:02:42]}  h5 {[%clk 0:02:13]} 18. c4 {[%clk 0:02:40]}  Bxb5 {[%clk 0:01:57]} 19. cxb5 {[%clk 0:02:37]}  Qd6 {[%clk 0:01:48]} 20. Rc1 {[%clk 0:02:31]}  e4 {[%clk 0:01:40]} 21. Nd4 {[%clk 0:02:26]}  Nc5 {[%clk 0:01:30]} 22. b4 {[%clk 0:02:26]}  Nd3 {[%clk 0:01:29]} 23. Bxd3 {[%clk 0:02:26]}  exd3 {[%clk 0:01:29]} 24. Nc6 {[%clk 0:02:26]}  Ng4 {[%clk 0:01:14]} 25. g3 {[%clk 0:02:25]}  Bxb2 {[%clk 0:01:02]} 26. Qxb2 {[%clk 0:02:26]}  h4 {[%clk 0:01:00]} 27. Rd1 {[%clk 0:02:24]}  hxg3 {[%clk 0:00:59]} 28. hxg3 {[%clk 0:02:24]}  Nxe3 {[%clk 0:00:58]} 29. fxe3 {[%clk 0:02:25]}  Rxe3 {[%clk 0:00:53]} 30. Qh2 {[%clk 0:02:18]}  Rxg3+ {[%clk 0:00:47]} 31. Kh1 {[%clk 0:02:15]}  Qf4 {[%clk 0:00:43]} 32. Nd4 {[%clk 0:01:50]}  Qe4+ {[%clk 0:00:42]} 0-1


[Site "https://www.chess.com"]